bitfinex-derivatives/quotes_BTCF0:USTF0_20260107
["timestamp","ask_amount","ask_price","bid_price","bid_amount"]
[1767781583174,0.010895,91848.0,91832.0,0.09264]
[1767781583380,0.00112979,91849.0,91817.0,0.0836055]
[1767781583381,0.010897,91837.0,91818.0,0.01193578]
[1767781583573,0.010897,91837.0,91817.0,0.0836055]
[1767781583574,0.09969796,91835.0,91822.0,0.09264]
[1767781583877,0.00112979,91838.0,91822.0,0.09264]
[1767781584074,0.010897,91837.0,91822.0,0.09264]
[1767781584578,0.010897,91835.0,91822.0,0.09264]
[1767781590982,0.010896,91838.0,91822.0,0.09264]
[1767781591185,0.010896,91838.0,91822.0,0.10457578]
[1767781591780,0.010897,91836.0,91822.0,0.10457578]
[1767781592493,0.010897,91833.0,91822.0,0.09264]
[1767781596578,0.010897,91833.0,91822.0,0.10439987]
[1767781599298,0.010897,91833.0,91823.0,0.02178]
[1767781599598,0.010897,91833.0,91823.0,0.03353987]
[1767781599790,0.010897,91836.0,91823.0,0.03353987]
[1767781600583,0.010897,91836.0,91824.0,0.01175987]
[1767781601187,0.010897,91834.0,91824.0,0.01175987]
[1767781607202,0.010896,91838.0,91824.0,0.01175987]
[1767781608597,0.010896,91838.0,91825.0,0.01175987]
[1767781609393,0.010897,91835.0,91825.0,0.01175987]
[1767781611106,0.010897,91833.0,91824.0,0.09247095]
[1767781611406,0.010897,91833.0,91823.0,0.02178]
[1767781612402,0.010897,91831.0,91823.0,0.02178]
[1767781612592,0.010897,91832.0,91823.0,0.02178]
[1767781613807,0.010897,91831.0,91823.0,0.02178]
[1767781616109,0.07483118,91840.0,91823.0,0.03353987]
[1767781616311,0.07483118,91840.0,91823.0,0.01175987]
[1767781616811,0.09228217,91832.0,91816.0,0.09264]
[1767781617111,0.16711335,91830.0,91816.0,0.09264]
[1767781617312,0.09228217,91830.0,91816.0,0.09264]
[1767781618005,0.09228217,91837.0,91817.0,0.02178]
[1767781618200,0.07483118,91830.0,91817.0,0.02178]
[1767781618605,0.010898,91826.0,91817.0,0.02178]
[1767781619706,0.010898,91829.0,91817.0,0.02178]
[1767781619908,0.010898,91829.0,91817.0,0.03220973]
[1767781620415,0.01106031,91833.0,91818.0,0.01042973]
[1767781620913,0.010897,91830.0,91818.0,0.01042973]
[1767781621115,0.010897,91831.0,91818.0,0.01042973]
[1767781621314,0.010898,91829.0,91818.0,0.01042973]
[1767781633722,0.00016331,91833.0,91818.0,0.01042973]
[1767781633927,0.010898,91825.0,91817.0,0.02178]
[1767781636221,0.00016331,91833.0,91819.0,0.10902822]
[1767781636725,0.00016331,91833.0,91817.0,0.02178]
[1767781636726,0.010897,91830.0,91817.0,0.02178]
[1767781637623,0.010897,91830.0,91817.0,0.0322328]
[1767781637920,0.00016331,91833.0,91820.0,0.09857542]
[1767781638132,0.09522342,91848.0,91818.0,0.0104528]
[1767781638133,0.010896,91838.0,91824.0,0.0104528]
[1767781639230,0.09522342,91842.0,91823.0,0.09857542]
[1767781639530,0.010897,91836.0,91818.0,0.10902822]
[1767781640320,0.010897,91836.0,91819.0,0.0104528]
[1767781644432,0.010897,91835.0,91819.0,0.0104528]
[1767781645934,0.010896,91839.0,91819.0,0.0104528]
[1767781648730,0.010896,91839.0,91819.0,0.10902822]
[1767781648927,0.010896,91839.0,91821.0,0.0104528]
[1767781650536,0.10611942,91842.0,91821.0,0.0104528]
[1767781651522,0.10611942,91842.0,91822.0,0.0104528]
[1767781655745,0.09264,91844.0,91831.0,0.01010737]
[1767781655947,0.09217603,91865.0,91843.0,0.01010737]
[1767781656141,0.09217603,91858.0,91839.0,0.01010737]
[1767781656343,0.09217603,91858.0,91836.0,0.09138415]
[1767781656344,0.09217603,91852.0,91838.0,0.09264]
[1767781656740,1e-08,91859.0,91840.0,0.01010737]
[1767781657438,1e-08,91859.0,91840.0,0.10149152]
[1767781657638,1e-08,91859.0,91843.0,0.01010737]
[1767781660144,1e-08,91859.0,91845.0,0.01010737]
[1767781660457,1e-08,91859.0,91846.0,0.02100237]
[1767781661351,1e-08,91859.0,91846.0,0.010895]
[1767781663260,0.010893,91868.0,91850.0,0.01010737]
[1767781663453,0.09217603,91871.0,91850.0,0.01010737]
[1767781665162,0.09264,91875.0,91855.0,0.01010737]
[1767781665455,0.15291722,91875.0,91856.0,0.01010737]
[1767781665650,0.24509325,91875.0,91856.0,0.01010737]
[1767781665850,0.24509325,91875.0,91856.0,0.01027068]
[1767781667160,0.010892,91874.0,91856.0,0.01027068]
[1767781667751,0.10306903,91871.0,91856.0,0.00016331]
[1767781668562,0.09217603,91871.0,91856.0,0.00016331]
[1767781670359,0.010892,91879.0,91858.0,0.010894]
[1767781670565,0.09217603,91880.0,91860.0,0.01010737]
[1767781670859,0.09217603,91880.0,91861.0,0.01010737]
[1767781672160,0.09217603,91887.0,91864.0,0.10149152]
[1767781672371,0.10306703,91886.0,91865.0,0.01010737]
[1767781672663,0.10306703,91883.0,91860.0,0.01010737]
[1767781672867,0.10306703,91883.0,91861.0,0.01010737]
[1767781673058,0.010892,91879.0,91861.0,0.01010737]
[1767781673251,0.10306703,91883.0,91861.0,0.01010737]
[1767781677364,0.10306703,91883.0,91862.0,0.02177]
[1767781678069,0.10306703,91881.0,91862.0,0.02177]
[1767781678371,0.09217603,91881.0,91862.0,0.02177]
[1767781680454,0.10306703,91881.0,91862.0,0.02177]
[1767781680970,0.09217603,91875.0,91850.0,0.02174079]
[1767781681155,0.09217603,91869.0,91844.0,0.0945015]
[1767781681361,0.010893,91868.0,91846.0,0.10149152]
[1767781682055,0.10958812,91868.0,91846.0,0.11214493]
[1767781687967,0.10958812,91868.0,91846.0,0.10149152]
[1767781691073,0.09264,91875.0,91856.0,0.10145511]
[1767781691458,0.09264,91875.0,91856.0,0.0913129]
[1767781691662,0.18491683,91875.0,91856.0,0.0913129]
[1767781691858,0.09227683,91874.0,91850.0,0.10145511]
[1767781692272,0.010892,91872.0,91851.0,0.10145511]
[1767781693761,0.010892,91872.0,91852.0,0.10145511]
[1767781694274,0.010893,91871.0,91852.0,0.10145511]
[1767781696577,0.010893,91871.0,91853.0,0.01014221]
[1767781696770,0.010893,91871.0,91853.0,0.10145511]
[1767781697869,0.09264,91875.0,91853.0,0.10145511]
[1767781697870,0.010893,91868.0,91853.0,0.10145511]
[1767781699566,0.010893,91868.0,91854.0,0.00357]
[1767781699967,0.010893,91871.0,91854.0,0.00357]
[1767781701166,0.09264,91875.0,91854.0,0.00357]
[1767781701167,0.010893,91868.0,91854.0,0.00357]
[1767781702176,0.010893,91868.0,91844.0,0.010896]
[1767781702177,0.09227683,91863.0,91841.0,0.18923479]
[1767781702471,0.010894,91855.0,91836.0,0.0913129]
[1767781702679,0.010894,91855.0,91836.0,0.10145511]
[1767781705472,0.010894,91855.0,91837.0,0.10145511]
[1767781706979,0.010894,91855.0,91839.0,0.10145511]
[1767781708482,0.010894,91855.0,91840.0,0.10145511]
[1767781709080,0.010894,91855.0,91840.0,0.17622733]
[1767781709573,0.0926,91858.0,91840.0,0.17622733]
[1767781709882,0.010895,91854.0,91840.0,0.10145511]
[1767781712881,0.010894,91857.0,91841.0,0.10802707]
[1767781715885,0.010894,91857.0,91842.0,0.00920682]
[1767781716385,0.0926,91858.0,91842.0,0.10802707]
[1767781716583,0.0926,91858.0,91849.0,0.00920682]
[1767781716780,0.010894,91857.0,91850.0,0.00920682]
[1767781716986,0.010894,91857.0,91850.0,0.09882025]
[1767781717288,0.010894,91857.0,91847.0,0.00920682]
[1767781717484,0.010894,91857.0,91845.0,0.09882025]
[1767781718387,0.010894,91855.0,91845.0,0.09882025]
[1767781719784,0.103494,91858.0,91845.0,0.10802707]
[1767781719989,0.103494,91858.0,91846.0,0.10802707]
[1767781721990,0.103494,91858.0,91847.0,0.10802707]
[1767781724391,0.010895,91854.0,91843.0,0.00920682]
[1767781724584,0.010895,91852.0,91838.0,0.00920682]
[1767781724779,0.010895,91848.0,91836.0,0.10802707]
[1767781725293,0.07477222,91850.0,91836.0,0.10802707]
[1767781725294,0.08566722,91850.0,91836.0,0.10802707]
[1767781725494,0.08566722,91850.0,91837.0,0.00920682]
[1767781725690,0.08566722,91850.0,91838.0,0.00920682]
[1767781725890,0.010895,91853.0,91838.0,0.10802707]
[1767781726090,0.010895,91847.0,91832.0,0.09882025]
[1767781726296,0.09233828,91850.0,91829.0,0.00217797]
[1767781726494,0.010896,91844.0,91829.0,0.11020504]
[1767781726988,0.010896,91844.0,91830.0,0.10802707]
[1767781727494,0.010896,91844.0,91829.0,0.00217797]
[1767781727495,0.09264,91845.0,91831.0,0.00920682]
[1767781727695,0.09264,91845.0,91832.0,0.10802707]
[1767781728291,0.09264,91845.0,91834.0,0.00920682]
[1767781728488,0.09264,91845.0,91834.0,0.10802707]
[1767781735797,0.010896,91844.0,91834.0,0.10802707]
[1767781736713,0.010896,91844.0,91834.0,0.10802707]
[1767781736897,0.010896,91844.0,91834.0,0.09882025]
[1767781737200,0.010896,91844.0,91830.0,0.10802707]
[1767781737392,0.010896,91844.0,91831.0,0.00920682]
[1767781737598,0.010896,91844.0,91832.0,0.10802707]
[1767781738000,0.09264,91845.0,91832.0,0.10802707]
[1767781738597,0.103536,91845.0,91832.0,0.10802707]
[1767781740299,0.09264,91845.0,91832.0,0.10802707]
[1767781740500,0.09264,91845.0,91833.0,0.10726029]
[1767781742195,0.010896,91844.0,91829.0,0.00217797]
[1767781743507,0.09264,91845.0,91830.0,0.10066806]
[1767781744105,0.09264,91845.0,91831.0,0.10066806]
[1767781744493,0.09264,91845.0,91835.0,0.10066806]
[1767781744697,0.09264,91845.0,91836.0,0.10066806]
[1767781745309,0.103536,91845.0,91836.0,0.10066806]
[1767781745604,0.09264,91845.0,91836.0,0.10066806]
[1767781747195,0.09264,91845.0,91837.0,0.00983121]
[1767781747392,0.08264,91845.0,91837.0,0.00983121]
[1767781747595,0.09264,91846.0,91839.0,0.10066806]
[1767781747795,0.09264,91846.0,91839.0,0.09083685]
[1767781748805,0.09264,91846.0,91835.0,0.00983121]
[1767781749902,0.09264,91846.0,91835.0,0.10066806]
[1767781750110,0.09264,91846.0,91837.0,0.10066806]
[1767781753212,0.010895,91852.0,91837.0,0.09083685]
[1767781754302,0.09264,91853.0,91837.0,0.09083685]
[1767781757805,0.103535,91853.0,91837.0,0.09083685]
[1767781758315,0.103535,91853.0,91837.0,0.10066806]
[1767781759618,0.09264,91853.0,91837.0,0.10066806]
[1767781765119,0.09264,91853.0,91843.0,0.00983121]
[1767781765325,0.09264,91855.0,91844.0,0.10066806]
[1767781765716,0.09264,91855.0,91844.0,0.09083685]
[1767781768523,0.09264,91855.0,91844.0,0.10066806]
[1767781771925,0.010894,91861.0,91849.0,0.01101633]
[1767781772130,0.09264,91866.0,91850.0,0.10273218]
[1767781772520,0.15361205,91866.0,91850.0,0.10273218]
[1767781773232,0.010894,91863.0,91850.0,0.10273218]
[1767781773622,0.01023934,91865.0,91846.0,0.01101633]
[1767781773931,0.01023934,91865.0,91845.0,0.09171585]
[1767781775130,0.010894,91860.0,91845.0,0.09171585]
[1767781777229,0.01023934,91865.0,91845.0,0.09171585]
[1767781778235,0.010894,91859.0,91845.0,0.09171585]
[1767781778920,0.010894,91859.0,91845.0,0.10273218]
[1767781783344,0.010894,91859.0,91846.0,0.10273218]
[1767781787739,0.010894,91859.0,91848.0,0.10273218]
[1767781790351,0.15361205,91866.0,91848.0,0.10273218]
[1767781790647,0.15361205,91866.0,91850.0,0.10273218]
[1767781791037,0.010893,91863.0,91850.0,0.10273218]
[1767781791544,0.010893,91863.0,91851.0,0.10273218]
[1767781791745,0.010893,91863.0,91840.0,0.010896]
[1767781791746,0.010893,91863.0,91853.0,0.10273218]
[1767781792247,0.010893,91863.0,91853.0,0.09171585]
[1767781792950,0.09264,91866.0,91855.0,0.10273218]
[1767781794050,0.010893,91868.0,91857.0,0.10273218]
[1767781794348,0.010893,91868.0,91857.0,0.09171585]
[1767781795843,0.010893,91866.0,91857.0,0.09171585]
[1767781796051,0.09264,91873.0,91857.0,0.09171585]
[1767781796244,0.1531521,91873.0,91857.0,0.09171585]
[1767781796947,0.010893,91866.0,91857.0,0.09171585]
[1767781798545,0.01023934,91868.0,91840.0,0.09171585]
[1767781798744,0.01023934,91868.0,91845.0,0.01101633]
[1767781798939,0.01023934,91868.0,91846.0,0.10273218]
[1767781799342,0.01023934,91868.0,91848.0,0.10273218]
[1767781799646,0.09123511,91872.0,91851.0,0.09585557]
[1767781799841,0.1531521,91873.0,91856.0,0.10512704]
[1767781800347,0.16309678,91873.0,91856.0,0.09585557]
[1767781801045,0.010893,91866.0,91856.0,0.09585557]
[1767781801651,0.010893,91864.0,91856.0,0.09585557]
[1767781802449,0.01009006,91869.0,91848.0,0.00953446]
[1767781802641,0.010894,91860.0,91846.0,0.09930276]
[1767781802841,0.010894,91858.0,91846.0,0.09930276]
[1767781803152,0.010894,91858.0,91846.0,0.10883722]
[1767781804240,0.010894,91858.0,91847.0,0.10883722]
[1767781804440,0.010894,91858.0,91848.0,0.10883722]
[1767781807253,0.010894,91858.0,91848.0,0.09930276]
[1767781807453,0.010894,91858.0,91848.0,0.10883722]
[1767781808555,0.010894,91857.0,91848.0,0.10883722]
[1767781810254,0.010894,91857.0,91849.0,0.00953446]
[1767781810446,0.010894,91857.0,91849.0,0.10883722]
[1767781815863,0.010894,91857.0,91850.0,0.10883722]
[1767781816562,0.010894,91860.0,91850.0,0.10883722]
[1767781818252,0.010894,91860.0,91851.0,0.10883722]
[1767781818453,0.010894,91860.0,91852.0,0.10883722]
[1767781820060,0.010894,91858.0,91852.0,0.10883722]
[1767781821669,0.010894,91862.0,91852.0,0.10883722]
[1767781821857,0.010894,91862.0,91853.0,0.10883722]
[1767781823070,0.09264,91863.0,91853.0,0.10883722]
[1767781825272,0.09264,91862.0,91856.0,0.10883722]
[1767781825464,0.07264,91862.0,91856.0,0.10883722]
[1767781825764,0.07264,91862.0,91850.0,0.07479553]
[1767781825970,0.07264,91862.0,91852.0,0.00611018]
[1767781828071,0.083534,91862.0,91852.0,0.00611018]
[1767781829075,0.010894,91859.0,91848.0,0.00953446]
[1767781829274,0.010894,91859.0,91846.0,0.09930276]
[1767781829572,0.010894,91857.0,91844.0,0.00953446]
[1767781830166,0.010894,91858.0,91844.0,0.00953446]
[1767781831472,0.07479553,91860.0,91844.0,0.00953446]
[1767781831978,0.010894,91859.0,91844.0,0.00953446]
[1767781833275,0.07264,91862.0,91844.0,0.00953446]
[1767781833466,0.010894,91860.0,91844.0,0.00953446]
[1767781833779,0.07264,91862.0,91844.0,0.00953446]
[1767781834580,0.010894,91861.0,91844.0,0.00953446]
[1767781835382,0.010894,91861.0,91846.0,0.01094212]
[1767781836878,0.083534,91862.0,91846.0,0.01094212]
[1767781839181,0.07264,91862.0,91847.0,0.01094212]
[1767781840385,0.07264,91862.0,91850.0,0.07479553]
[1767781841989,0.07264,91862.0,91847.0,0.01094212]
[1767781842283,0.07264,91862.0,91850.0,0.07479553]
[1767781845877,0.083534,91862.0,91850.0,0.07479553]
[1767781847774,0.083534,91862.0,91847.0,0.01094212]
[1767781847976,0.010894,91860.0,91850.0,0.07479553]
[1767781848487,0.010894,91860.0,91847.0,0.01094212]
[1767781849184,0.07264,91862.0,91851.0,0.01008963]
[1767781849374,0.010893,91870.0,91854.0,0.10614639]
[1767781849579,0.010893,91870.0,91852.0,0.07479553]
[1767781849580,0.09264,91870.0,91856.0,0.01008963]
[1767781850677,0.09264,91870.0,91855.0,0.09605676]
[1767781851279,0.010893,91866.0,91855.0,0.09605676]
[1767781853691,0.09264,91870.0,91855.0,0.09605676]
[1767781853692,0.010893,91869.0,91855.0,0.09605676]
[1767781854886,0.010893,91867.0,91853.0,0.00984475]
[1767781855090,0.010893,91865.0,91850.0,0.18869676]
[1767781855390,0.010893,91865.0,91851.0,0.00950045]
[1767781861098,0.010893,91868.0,91851.0,0.00950045]
[1767781861696,0.010893,91866.0,91851.0,0.00950045]
[1767781862098,0.010893,91864.0,91851.0,0.00950045]
[1767781865988,0.010893,91867.0,91851.0,0.00950045]
[1767781868193,0.11385473,91870.0,91851.0,0.00950045]
[1767781868391,0.11385473,91870.0,91850.0,0.26349229]
[1767781868392,0.09264,91870.0,91853.0,0.00780977]
[1767781870700,0.09264,91870.0,91854.0,0.00732816]
[1767781873195,0.09264,91870.0,91853.0,0.09503114]
[1767781873394,0.09264,91870.0,91853.0,0.10209154]
[1767781873597,0.09264,91870.0,91850.0,0.16743553]
[1767781873598,0.01032173,91877.0,91858.0,0.0070604]
[1767781873913,0.01032173,91877.0,91860.0,0.07479553]
[1767781874705,0.01032173,91877.0,91857.0,0.00694334]
[1767781875502,0.09264,91879.0,91864.0,0.01018467]
[1767781875704,0.06340883,91889.0,91873.0,0.01018467]
[1767781875903,0.06340883,91889.0,91872.0,0.09503114]
[1767781876105,0.07373056,91889.0,91870.0,0.01018467]
[1767781876405,0.06340883,91889.0,91872.0,0.01018467]
[1767781876706,0.00217655,91889.0,91872.0,0.01018467]
[1767781876902,0.00217655,91889.0,91871.0,0.09503114]
[1767781877892,0.00217655,91889.0,91874.0,0.00991221]
[1767781878099,0.09538525,91899.0,91881.0,0.00991221]
[1767781878598,0.09264,91901.0,91884.0,0.00991221]
[1767781879801,0.09264,91901.0,91884.0,0.00969567]
[1767781880110,0.09264,91910.0,91890.0,0.09503114]
[1767781880411,0.09538525,91911.0,91894.0,0.01089]
[1767781880613,0.09538525,91911.0,91894.0,0.02058567]
[1767781880803,0.01032173,91914.0,91896.0,0.01089]
[1767781881111,0.10570698,91913.0,91896.0,0.01089]
[1767781881309,0.09538525,91913.0,91896.0,0.01089]
[1767781881610,0.10570698,91913.0,91893.0,0.00976033]
[1767781881912,0.10570698,91913.0,91895.0,0.01018467]
[1767781882513,0.10570698,91913.0,91896.0,0.010889]
[1767781882702,0.09538525,91913.0,91896.0,0.02107367]
[1767781882908,0.01032173,91917.0,91896.0,0.02107367]
[1767781882909,0.01032173,91917.0,91896.0,0.01018467]
[1767781883309,0.09264,91921.0,91904.0,0.010889]
[1767781883310,0.10296173,91921.0,91904.0,0.010889]
[1767781883508,0.09264,91921.0,91908.0,0.01018467]
[1767781883899,0.10570698,91928.0,91908.0,0.01018467]
[1767781884097,0.0926,91927.0,91912.0,0.010888]
[1767781884302,0.0926,91927.0,91912.0,0.02107267]
[1767781884606,0.0926,91927.0,91912.0,0.010888]
[1767781885012,0.0926,91927.0,91909.0,0.01018467]
[1767781886416,0.10292173,91927.0,91909.0,0.01018467]
[1767781887015,0.0926,91927.0,91910.0,0.010888]
[1767781888414,0.0926,91927.0,91909.0,0.01018467]
[1767781889413,0.01032173,91925.0,91905.0,0.01018467]
[1767781889611,0.01032173,91924.0,91905.0,0.01018467]
[1767781890013,0.01032173,91922.0,91903.0,0.09503114]
[1767781890215,0.01032173,91922.0,91903.0,0.10521581]
[1767781890514,0.01032173,91919.0,91902.0,0.010889]
[1767781891103,0.10570698,91920.0,91902.0,0.010889]
[1767781891305,0.10570698,91919.0,91902.0,0.010889]
[1767781892713,0.09538525,91919.0,91902.0,0.010889]
[1767781893612,0.0117344,91921.0,91902.0,0.090126]
[1767781893813,0.0117344,91918.0,91898.0,0.01119904]
[1767781894014,0.09496119,91919.0,91901.0,0.010889]
[1767781894318,0.09496119,91919.0,91901.0,0.02208804]
[1767781894723,0.09496119,91919.0,91904.0,0.010889]
[1767781895115,0.09496119,91919.0,91901.0,0.01119904]
[1767781895322,0.09496119,91919.0,91902.0,0.010889]
[1767781895916,0.010886,91925.0,91902.0,0.010889]
[1767781895917,0.10669559,91924.0,91903.0,0.01110591]
[1767781896123,0.0117344,91922.0,91903.0,0.01110591]
[1767781896307,0.0117344,91922.0,91904.0,0.010889]
[1767781896508,0.09496119,91923.0,91904.0,0.01110591]
[1767781896818,0.09496119,91923.0,91905.0,0.01110591]
[1767781897019,0.0926,91927.0,91909.0,0.010888]
[1767781897527,0.0926,91926.0,91909.0,0.010888]
[1767781898110,0.0926,91926.0,91909.0,0.02184033]
[1767781898626,0.0926,91926.0,91909.0,0.010888]
[1767781899323,0.1043344,91926.0,91909.0,0.010888]
[1767781899520,0.0117344,91915.0,91901.0,0.010889]
[1767781899818,0.0117344,91918.0,91899.0,0.01087904]
[1767781900023,0.10669559,91921.0,91900.0,0.01087904]
[1767781900212,0.0117344,91918.0,91899.0,0.010889]
[1767781900614,0.0117344,91918.0,91900.0,0.01087904]
[1767781900813,0.0117344,91916.0,91897.0,0.10340414]
[1767781901012,0.09496119,91923.0,91902.0,0.10093014]
[1767781901211,0.0117344,91919.0,91900.0,0.01080414]
[1767781901427,0.0117344,91919.0,91902.0,0.010889]
[1767781902725,0.10669559,91920.0,91906.0,0.010888]
[1767781903227,0.09496119,91920.0,91909.0,0.010888]
[1767781904019,0.0117344,91924.0,91909.0,0.010888]
[1767781905426,0.0117344,91924.0,91906.0,0.01055476]
[1767781905626,0.0117344,91924.0,91907.0,0.010888]
[1767781906124,0.0117344,91921.0,91905.0,0.010888]
[1767781907123,0.0117344,91921.0,91907.0,0.010888]
[1767781907720,0.09496119,91922.0,91907.0,0.010888]
[1767781907925,0.10669559,91920.0,91907.0,0.010888]
[1767781908327,0.09496119,91920.0,91907.0,0.010888]
[1767781909426,0.09496119,91920.0,91909.0,0.010888]
[1767781909734,4e-07,91923.0,91913.0,0.010887]
[1767781909925,0.09256,91925.0,91913.0,0.010887]
[1767781910131,0.09256,91933.0,91914.0,0.01142799]
[1767781910723,0.09256,91933.0,91913.0,0.090126]
[1767781911228,0.09256,91933.0,91916.0,0.010887]
[1767781911422,0.09256,91933.0,91918.0,0.010887]
[1767781911625,0.18752119,91933.0,91918.0,0.010887]
[1767781911823,0.0117344,91932.0,91918.0,0.010887]
[1767781912028,0.09256,91933.0,91920.0,0.010887]
[1767781912332,0.1042944,91933.0,91920.0,0.010887]
[1767781912728,0.0117344,91932.0,91920.0,0.010887]
[1767781913835,0.09256,91936.0,91920.0,0.11244099]
[1767781914135,0.0117344,91935.0,91917.0,0.010887]
[1767781914430,0.0112344,91934.0,91917.0,0.010887]
[1767781916529,0.09496119,91935.0,91917.0,0.02231499]
[1767781916730,0.0117344,91935.0,91919.0,0.010887]
[1767781919733,0.0117344,91935.0,91921.0,0.010886]
[1767781919932,0.09256,91936.0,91921.0,0.010886]
[1767781920130,0.01199762,91936.0,91923.0,0.010886]
[1767781920331,0.09256,91946.0,91920.0,0.01232214]
[1767781920534,0.19178537,91946.0,91927.0,0.01232214]
[1767781920935,0.19178537,91946.0,91933.0,0.010885]
[1767781921532,0.00217513,91949.0,91937.0,0.11138696]
[1767781921837,0.00217513,91949.0,91938.0,0.010885]
[1767781922034,0.00217513,91949.0,91934.0,0.010885]
[1767781923125,0.00217513,91949.0,91934.0,0.02281841]
[1767781923334,0.00217513,91949.0,91934.0,0.010885]
[1767781923525,0.01249636,91946.0,91929.0,1.59256]
[1767781923730,0.01249636,91944.0,91929.0,1.59256]
[1767781923929,0.01249636,91942.0,91929.0,1.5]
[1767781924133,0.01249636,91934.0,91922.0,0.010886]
[1767781924332,0.01249636,91933.0,91923.0,0.09256]
[1767781924534,0.01249636,91930.0,91919.0,0.09256]
[1767781925035,0.09256,91946.0,91913.0,0.010887]
[1767781925036,0.01249636,91926.0,91913.0,0.010887]
[1767781925237,0.01249636,91926.0,91914.0,0.09256]
[1767781925832,0.09912205,91927.0,91914.0,0.09256]
[1767781926233,0.09912205,91927.0,91915.0,0.010887]
[1767781926535,0.01249636,91929.0,91915.0,0.010887]
[1767781926932,0.09912205,91933.0,91918.0,0.010887]
[1767781927138,0.11161841,91933.0,91918.0,0.010887]
[1767781927337,0.09912205,91933.0,91918.0,0.010887]
[1767781927644,0.11161841,91933.0,91914.0,0.11538041]
[1767781928046,0.01249636,91932.0,91914.0,0.11538041]
[1767781928944,0.11161841,91969.0,91916.0,0.01193341]
[1767781929148,0.01249636,91952.0,91923.0,0.01193341]
[1767781929442,0.11161841,91943.0,91923.0,0.01193341]
[1767781929637,0.01249636,91942.0,91923.0,0.01193341]
[1767781930048,0.01249636,91942.0,91928.0,0.010886]
[1767781930248,0.01249636,91942.0,91929.0,0.09256]
[1767781931643,0.11161841,91949.0,91930.0,0.010885]
[1767781932146,0.11161841,91949.0,91929.0,0.10449341]
[1767781932537,0.01249636,91948.0,91929.0,0.11537941]
[1767781932739,0.11161841,91948.0,91929.0,0.103446]
[1767781934643,0.09912205,91948.0,91931.0,0.010885]
[1767781934846,0.11161841,91948.0,91931.0,0.010885]
[1767781935048,0.01249636,91947.0,91931.0,0.010885]
[1767781936152,0.01249636,91947.0,91929.0,0.09256]
[1767781936749,0.11161841,91953.0,91937.0,0.0746535]
[1767781936946,0.09912205,91947.0,91930.0,0.0746535]
[1767781937150,0.01249636,91946.0,91930.0,0.0746535]
[1767781937451,0.09912205,91947.0,91931.0,0.09256]
[1767781937838,0.09912205,91947.0,91930.0,1.0047385]
[1767781937839,0.09912205,91947.0,91932.0,0.09256]
[1767781938835,0.01249636,91950.0,91932.0,0.103445]
[1767781939039,0.01249636,91947.0,91932.0,0.09256]
[1767781941750,0.09912205,91948.0,91932.0,0.09256]
[1767781943850,0.01249636,91940.0,91920.0,0.18305905]
[1767781944054,0.01249636,91940.0,91921.0,1.0118]
[1767781944253,0.01249636,91940.0,91924.0,0.010886]
[1767781945050,0.09912205,91941.0,91924.0,0.010886]
[1767781945441,0.11161841,91941.0,91924.0,0.010886]
[1767781945949,0.0746535,91934.0,91919.0,0.00217584]
[1767781946254,0.11161841,91932.0,91920.0,1.01184]
[1767781946456,0.09912205,91932.0,91920.0,1.01184]
[1767781946954,0.09912205,91932.0,91920.0,1.0864935]
[1767781947143,0.01249636,91935.0,91920.0,1.0864935]
[1767781947344,0.01249636,91935.0,91920.0,1.01184]
[1767781947955,0.01249636,91926.0,91910.0,0.010888]
[1767781948155,0.01249636,91924.0,91916.0,0.09256]
[1767781949559,0.09912205,91925.0,91916.0,0.09256]
[1767781949856,0.01249636,91924.0,91916.0,0.09256]
[1767781952461,0.09912205,91925.0,91916.0,0.09256]
[1767781953155,0.09912205,91925.0,91907.0,0.010888]
[1767781953361,0.09912205,91925.0,91909.0,0.91944]
[1767781954453,0.01106146,91927.0,91910.0,0.010888]
[1767781955758,0.01106146,91929.0,91910.0,0.02186544]
[1767781956358,0.01106146,91929.0,91910.0,0.09651894]
[1767781956571,0.01106146,91929.0,91912.0,0.010888]
[1767781957053,0.1672135,91940.0,91915.0,0.01097744]
[1767781957054,0.09951019,91935.0,91915.0,0.01097744]
[1767781957254,0.11057165,91935.0,91915.0,0.01097744]
[1767781957547,0.01106146,91934.0,91915.0,0.01097744]
[1767781957751,0.09951019,91938.0,91918.0,0.01097744]
[1767781957958,0.01106146,91939.0,91915.0,0.010887]
[1767781958163,0.01106146,91937.0,91917.0,0.01097744]
[1767781958362,0.11057165,91936.0,91917.0,0.01097744]
[1767781958666,0.01106146,91932.0,91913.0,0.01097744]
[1767781961562,0.01106146,91931.0,91910.0,0.01097744]
[1767781961866,0.01106146,91929.0,91910.0,0.01097744]
[1767781962467,0.01106146,91929.0,91910.0,0.08563094]
[1767781962669,0.01106146,91929.0,91910.0,0.01097744]
[1767781962864,0.01106146,91929.0,91910.0,0.08563094]
[1767781963069,0.01106146,91929.0,91911.0,0.01097744]
[1767781963464,0.09951019,91930.0,91911.0,0.01097744]
[1767781965566,0.01106146,91929.0,91911.0,0.01097744]
[1767781965871,0.00217513,91949.0,91932.0,0.01097744]
[1767781965872,1.3e-07,91949.0,91932.0,0.01097744]
[1767781966169,0.13881287,91979.0,91942.0,0.01097744]
[1767781966170,0.01106146,91964.0,91942.0,0.01097744]
[1767781966370,0.0746535,91960.0,91942.0,0.01097744]
[1767781966571,0.01106146,91960.0,91942.0,0.01097744]
[1767781966771,0.09256,91966.0,91950.0,0.0746535]
[1767781966981,0.19207019,91966.0,91950.0,0.0746535]
[1767781967162,0.09951019,91965.0,91950.0,0.0746535]
[1767781967367,0.09951019,91965.0,91945.0,0.02186144]
[1767781967662,0.09951019,91964.0,91943.0,0.09256]
[1767781968775,0.09951019,91962.0,91943.0,0.09256]
[1767781968978,0.1075104,91962.0,91943.0,0.09256]
[1767781969473,0.00800021,91961.0,91943.0,0.09256]
[1767781970174,0.1075104,91961.0,91943.0,0.09256]
[1767781972482,0.10728557,91959.0,91943.0,0.09256]
[1767781972893,0.09951019,91959.0,91943.0,0.09256]
[1767781973392,0.09951019,91959.0,91949.0,0.0746535]
[1767781973692,0.09951019,91959.0,91943.0,0.09256]
[1767781973891,0.09951019,91959.0,91943.0,0.103444]
[1767781974394,0.00763977,91962.0,91949.0,0.0746535]
[1767781974786,0.10714996,91962.0,91949.0,0.0746535]
[1767781974987,0.10758077,91961.0,91943.0,0.103444]
[1767781975286,0.10758077,91961.0,91950.0,0.0746535]
[1767781975492,0.10758077,91961.0,91943.0,0.103444]
[1767781975695,0.10758077,91961.0,91943.0,0.09256]
[1767781976390,0.09951019,91961.0,91943.0,0.11442144]